[Event "4NCL 2022-2023"]
[Site "Daventry"]
[Date "2023.03.19"]
[Round "8.27"]
[White "Wall, Gavin"]
[Black "McClement, Andrew"]
[Result "0-1"]
[ECO "B53"]
[WhiteElo "2290"]
[BlackElo "2210"]
[Annotator "TA"]
[PlyCount "88"]
[EventDate "2022.10.20"]
[EventType "team-tourn"]
[EventCountry "ENG"]
[SourceTitle "playchess.com"]
[Source "ChessBase"]
[SourceQuality "1"]
[TimeControl "40/6000+30:2400+30"]

{[%evp 20,88,-6,-16,-4,-7,0,0,0,-54,-48,-52,-55,-59,-60,-98,-94,-113,-106,-121,-104,-109,-93,-132,-108,-118,-121,-188,-195,-196,-199,-193,-174,-170,-169,-210,-192,-356,-356,-342,-337,-330,-329,-325,-283,-392,-399,-538,-422,-376,-370,-509,-516,-509,-486,-5389,-2395,-1687,-1397,-12834,-12835,-12839,-12834,-12832,-12833,-12835,-12834,-12841,-12840,-12841,-12840]} 1. e4 {[%emt 0:00:03]} c5 {[%emt 0:00:53]} 2. Nf3 {[%emt 0:00:06]} d6 {[%emt 0:00:04]} 3. d4 {[%emt 0:01:25]} cxd4 {[%emt 0:00:02]} 4. Qxd4 {[%emt 0:00:08]} Nc6 {[%emt 0:00:04]} 5. Bb5 {[%emt 0:00:05]} Bd7 {[%emt 0:00:05]} 6. Bxc6 {[%emt 0:00:04]} Bxc6 {[%emt 0:00:04]} 7. Nc3 {[%emt 0:00:48]} Nf6 {[%emt 0:00:02]} 8. Bg5 {[%emt 0:00:07]} e6 {[%emt 0:00:11]} 9. O-O-O {[%emt 0:00:24]} Be7 {[%emt 0:00:06]} 10. Rhe1 {[%emt 0:01:07]} O-O {[%emt 0:02:54]} 11. Qd2 {[%emt 0:01:35]} a6 {[%emt 0:27:16] B53: Sicilian: 2...d6: Lines with Qxd4.} (11... h6 $5 {[%cal Rh6g5]} 12. Bf4 (12. Bxf6 Bxf6 13. a3 Qb6 $15) 12... d5 $11) 12. Nd4 {[%emt 0:00:37]} Rc8 {[%emt 0:13:29][%cal Ba8c8,Bc8c6,Bc6c4][%mdl 32]} 13. f4 {[%emt 0:05:38]} h6 {[%emt 0:04:49] The position is equal.} 14. Bxf6 {[%emt 0:03:38]} ({Better is} 14. Bh4 $1 $11) 14... Bxf6 $15 {[%emt 0:00:10]} 15. Kb1 {[%emt 0:02:23]} b5 {[%emt 0:01:47]} 16. Nxc6 {[%emt 0:00:33]} Rxc6 {[%emt 0:00:03] [#]} 17. Re3 $146 {[%emt 0:00:34]} ({Predecessor:} 17. Ne2 Qb6 18. Nd4 Rc4 19. Nf3 Rfc8 20. Qxd6 Qa5 21. Qd2 Qa4 22. b3 Qa3 23. Qc1 {0-1 Calcado,A (2201)-Pires,M (2100) American Continental 06th 2009 (6)}) 17... Qc7 {[%emt 0:25:05]} 18. Ne2 {[%emt 0:01:49]} Rc8 {[%emt 0:02:35][%cal Rc6c2]} 19. Rc1 {[%emt 0:00:13]} Rc4 {[%emt 0:00:30]} 20. Ng3 {[%emt 0:02:19]} Qc5 {[%emt 0:03:08]} 21. Qe2 {[%emt 0:17:26]} Bd4 {[%emt 0:06:03] Black is more active. White is weak on the dark squares} (21... Bxb2 $6 22. Kxb2 Rc3 23. Rxc3 Qxc3+ 24. Kb1 $11) 22. Rd3 {[%emt 0:02:27]} a5 {[%emt 0:00:29]} (22... Qb4 23. Rb3 Qc5 24. Nf1) 23. e5 {[%emt 0:11:21]} dxe5 $40 {[%emt 0:00:49][%mdl 128] Black is out for blood.} 24. Ne4 {[%emt 0:01:15]} Qb6 {[%emt 0:02:39]} 25. fxe5 {[%emt 0:10:24]} Bxe5 {[%emt 0:00:23][%cal Ob6c6]} 26. Nd2 {[%emt 0:01:30]} Bf6 {[%emt 0:04:16]} ({Stronger than} 26... Bxh2 27. g3 $11) 27. Rb3 {[%emt 0:02:21]} R4c5 {[%emt 0:03:53]} 28. Ne4 $2 {[%emt 0:00:24] [#]} (28. a4) 28... Rxc2 $3 {[%emt 0:00:31][%csl Gc8][%cal Rc2c1][%mdl 512]} 29. Nxf6+ {[%emt 0:00:32]} (29. Qxc2 Rxc2) 29... gxf6 {[%emt 0:00:02][%csl Gc8][%cal Rc2c1,Bg7f6,Bf6f5,Bf5f4][%mdl 32]} 30. Qxc2 {[%emt 0:03:06]} Rxc2 {[%emt 0:00:01]} 31. Rxc2 {[%emt 0:00:13][%mdl 4096] Endgame KQ-KRR} f5 {[%emt 0:00:26]} 32. a4 {[%emt 0:05:16] [#]} b4 {[%emt 0:00:43]} 33. Ka2 {[%emt 0:00:26]} Qd6 {[%emt 0:01:37]} 34. Rg3+ {[%emt 0:01:37]} Kf8 {[%emt 0:01:15]} 35. b3 {[%emt 0:01:05]} f4 {[%emt 0:00:19] Black is clearly winning.} 36. Rf3 {[%emt 0:05:14]} e5 {[%emt 0:02:15]} 37. Rcf2 {[%emt 0:00:24]} (37. Re2 $142 Qd1 38. Rff2) 37... e4 {[%emt 0:02:45]} 38. Rxf4 {[%emt 0:00:09] [#]} e3 $1 {[%emt 0:00:01]} 39. Rxf7+ {[%emt 0:00:10]} Ke8 {[%emt 0:00:02]} 40. R2f6 {[%emt 0:00:17]} e2 {[%emt 0:01:55]} ({Weaker is} 40... Qxh2 41. Rf8+ Kd7 42. R8f7+ Ke8 43. Rf8+ Kd7 44. R8f7+ Ke8 $11) 41. Rxd6 {[%emt 0:42:47]} Kxf7 {[%emt 0:40:21]} 42. Rd5 {[%emt 0:10:56]} e1=Q {[%emt 0:00:36] ( -> ...Qe2+)} (42... e1=B 43. Rxa5 Ke6 44. Ra6+ Kd7 45. Rxh6 $18) 43. Rxa5 {[%emt 0:00:08]} Qe2+ {[%emt 0:02:52]} 44. Kb1 {[%emt 0:00:20]} Qf1+ {[%emt 0:00:33] White did not feel at home in the position after the opening.   Weighted Error Value: White=0.57/Black=0.07 (flawless)} 0-1

[Event "4NCL 2022-2023"]
[Site "Daventry"]
[Date "2023.03.19"]
[Round "8.28"]
[White "Hill, Alistair"]
[Black "Freeman, Gordon"]
[Result "1-0"]
[ECO "B81"]
[WhiteElo "2173"]
[BlackElo "2094"]
[Annotator "TA"]
[PlyCount "51"]
[EventDate "2022.10.20"]
[EventType "team-tourn"]
[EventCountry "ENG"]
[SourceTitle "playchess.com"]
[Source "ChessBase"]
[SourceQuality "1"]
[TimeControl "40/6000+30:2400+30"]

{[%evp 15,51,56,40,48,34,37,33,29,76,78,111,106,217,192,242,249,209,222,392,352,412,407,391,403,470,453,439,399,390,403,1839,1800,2909,2710,1882,1164,29995,29988]} 1. e4 {[%emt 0:04:46]} c5 {[%emt 0:00:19]} 2. Nf3 {[%emt 0:00:05]} d6 {[%emt 0:00:10]} 3. d4 {[%emt 0:00:28]} cxd4 {[%emt 0:00:07]} 4. Nxd4 {[%emt 0:00:04]} Nf6 {[%emt 0:00:09]} 5. Nc3 {[%emt 0:00:05]} e6 {[%emt 0:00:26]} 6. g4 {[%emt 0:00:33]} h6 {[%emt 0:00:11]} 7. Rg1 {[%emt 0:00:06]} Nc6 {[%emt 0:04:50]} 8. Be3 $1 {[%emt 0:00:25] 8.Be3 is better than 8.h4.} a6 {[%emt 0:11:29]} 9. Nxc6 {[%emt 0:04:19] B81: Sicilian Scheveningen: Keres Attack.} bxc6 {[%emt 0:00:17]} 10. Qf3 {[%emt 0:00:05]} Rb8 {[%emt 0:09:45]} 11. O-O-O {[%emt 0:25:39] White is slightly better.} Qa5 {[%emt 0:19:07]} (11... Qc7 $11) 12. Bc4 $16 {[%emt 0:00:09] [#]} d5 $146 {[%emt 0:13:19]} ({Predecessor:} 12... Nd7 13. Bb3 Nc5 14. Kb1 Nxb3 15. axb3 e5 16. h4 Be6 17. Qg3 Be7 18. f4 f6 {1-0 Grachev,A (2349)-Kirillov,D (2200) Cheliabinsk Panchenko Memorial op-A 2022 (7)}) 13. Bb3 {[%emt 0:00:18]} Bb4 {[%emt 0:09:05]} (13... Qc7 $16 {might work better.}) 14. Bd4 $18 {[%emt 0:05:14] exd5 is the strong threat.} Be7 {[%emt 0:11:55]} (14... Qc7 $142) 15. exd5 {[%emt 0:02:55]} cxd5 {[%emt 0:03:33]} 16. h4 {[%emt 0:03:00][%cal Bh2h4,Bh4g5][%mdl 32]} Bb7 $2 {[%emt 0:06:28] [#]} (16... Rb4 17. a3 Rxd4 18. Rxd4 Qc5) 17. Qe3 {[%emt 0:08:12]} Bc6 {[%emt 0:03:19]} 18. g5 {[%emt 0:04:26]} hxg5 {[%emt 0:00:52]} 19. hxg5 {[%emt 0:00:06]} Ne4 {[%emt 0:01:11]} 20. Nxe4 {[%emt 0:04:10]} ({Not} 20. Bxg7 Rg8 $16) 20... dxe4 {[%emt 0:00:26]} 21. Bxg7 {[%emt 0:00:06]} Rg8 {[%emt 0:01:11]} 22. Bf6 {[%emt 0:00:06] Black must now prevent Qa7.} Bc5 {[%emt 0:03:56] Repels Qa7} (22... Rb7 $142 23. Bxe7 Rxe7) 23. Qf4 {[%emt 0:01:48]} Qb6 {[%emt 0:02:41] [#]} 24. g6 $1 {[%emt 0:10:16][%mdl 576] Deflection} fxg6 {[%emt 0:01:20]} 25. Bxe6 {[%emt 0:00:28] Bf7+ would kill now.} Bxf2 {[%emt 0:00:55]} 26. Qe5 {[%emt 0:00:07][%mdl 64] Decoy. White took control after the opening.   Weighted Error Value: White=0.07 (flawless) /Black=0.79} 1-0

[Event "4NCL 2022-2023"]
[Site "Daventry"]
[Date "2023.03.19"]
[Round "8.29"]
[White "Venkatesan, Kavin"]
[Black "Robertson, J Stuart"]
[Result "1/2-1/2"]
[ECO "D25"]
[WhiteElo "2184"]
[BlackElo "2155"]
[Annotator "TA"]
[PlyCount "208"]
[EventDate "2022.10.20"]
[EventType "team-tourn"]
[EventCountry "ENG"]
[SourceTitle "playchess.com"]
[Source "ChessBase"]
[SourceQuality "1"]
[TimeControl "40/6000+30:2400+30"]

{[%evp 12,208,39,-2,82,6,36,44,33,47,43,46,51,40,87,92,111,112,95,112,98,108,112,80,82,89,83,72,81,0,94,0,84,80,81,18,26,18,18,14,20,0,77,67,79,72,106,103,138,129,164,154,164,164,156,170,195,151,151,157,164,152,144,157,145,107,115,0,144,118,137,137,179,186,173,144,379,402,388,373,528,528,510,513,452,416,643,642,600,564,916,916,902,746,889,859,724,533,1684,624,617,503,963,1257,6283,6200,5616,1222,1189,1166,924,0,212,0,6283,5289,4931,848,660,137,1048,68,1040,0,68,0,137,0,2235,2228,2228,1925,12275,10526,8009,4622,10596,0,9839,10596,4702,5173,29957,29952,29975,29976,29976,29975,29977,29973,29977,29978,29977,29978,29956,29960,29960,29956,29964,29965,12843,0,0,0,0,0,0,0,0,0,0,0,0,0,0,0,0,0,0,0,0,0,0,0,0,0,0,0,0,0,0,0,0,0,0,0,0,0,0]} 1. d4 {[%emt 0:00:03]} d5 {[%emt 0:07:39]} 2. c4 {[%emt 0:00:12]} dxc4 {[%emt 0:00:03]} 3. Nf3 {[%emt 0:00:09]} Nf6 {[%emt 0:00:09]} 4. e3 {[%emt 0:00:32]} Bg4 {[%emt 0:00:09]} 5. Bxc4 {[%emt 0:03:30]} e6 {[%emt 0:00:05]} 6. h3 {[%emt 0:06:37]} Bh5 {[%emt 0:00:07]} 7. Nbd2 {[%emt 0:05:20]} a6 {[%emt 0:01:50] D25: Queen's Gambit Accepted: 4 e3: sidelines and 4...Bg4.} (7... Nbd7 $11) 8. b3 {[%emt 0:04:03]} ({Better is} 8. g4 $16 Bg6 9. h4) 8... Nc6 {[%emt 0:04:03]} 9. Bb2 {[%emt 0:02:19]} Bb4 {[%emt 0:05:25] White is slightly better.} 10. a3 {[%emt 0:05:43] [#]} Bxd2+ $146 {[%emt 0:05:03]} ({Predecessor:} 10... Bxf3 11. gxf3 Be7 12. Rg1 O-O 13. Qc2 g6 14. f4 Qd7 15. h4 Rad8 16. Be2 Nd5 {½-½ Csonka,B (2277)-Madl,I (2376) Zalakaros op 31st 2012 (2)}) 11. Qxd2 {[%emt 0:00:10]} Ne4 {[%emt 0:01:25]} 12. Qc2 {[%emt 0:06:13]} Bxf3 {[%emt 0:04:45]} (12... Bg6 $14) 13. gxf3 $16 {[%emt 0:00:07]} Nd6 {[%emt 0:06:20]} 14. d5 {[%emt 0:13:16]} (14. Rg1 {simplifies} Ne7 15. O-O-O Rg8 16. Qxh7 Qd7 17. Rxg7 Rxg7 18. Qxg7 O-O-O 19. Be2) 14... exd5 {[%emt 0:03:19]} 15. Bxd5 {[%emt 0:00:33]} ({Don't play} 15. Bxg7 $6 Rg8 16. Qxh7 Rxg7 17. Qxg7 dxc4 $11) 15... Ne7 {[%emt 0:09:05]} 16. Bxg7 {[%emt 0:12:25]} Rg8 {[%emt 0:00:57]} 17. Bf6 {[%emt 0:04:41][%cal Bg7f6,Bf6h4,Bh4g5][%mdl 32]} Rg6 {[%emt 0:01:18]} 18. Bh4 {[%emt 0:06:31] White is much more active. This pair of bishops is nice.} Rh6 {[%emt 0:04:37]} 19. Bg5 {[%emt 0:02:17]} (19. Bxe7 {simplifies} Qxe7 20. f4 O-O-O 21. a4) 19... Rg6 {[%emt 0:00:11]} 20. Bh4 {[%emt 0:00:03]} Rh6 $1 {[%emt 0:00:08]} 21. Bg5 {[%emt 0:04:17]} Rg6 {[%emt 0:00:25]} 22. Bxe7 {[%emt 0:00:16]} Qxe7 {[%emt 0:00:06]} 23. Be4 {[%emt 0:02:06]} (23. f4 $16) 23... Nxe4 $11 {[%emt 0:06:13]} 24. Qxe4 {[%emt 0:00:31]} Qxe4 {[%emt 0:00:07]} 25. fxe4 {[%emt 0:00:04][%mdl 4096] Endgame KRR-KRR} O-O-O {[%emt 0:00:21]} 26. Rd1 {[%emt 0:04:15]} Re8 {[%emt 0:01:00]} (26... Rb6 $11) 27. Rd4 $1 $16 {[%emt 0:01:22]} c5 {[%emt 0:05:45]} 28. Rd5 {[%emt 0:03:35]} b6 {[%emt 0:08:00]} 29. Rf5 {[%emt 0:04:17]} Re7 {[%emt 0:00:21]} 30. Ke2 {[%emt 0:02:19]} Rc7 {[%emt 0:03:52]} 31. Rh5 {[%emt 0:07:53]} h6 {[%emt 0:00:27]} 32. Rc1 {[%emt 0:00:50]} Re6 {[%emt 0:01:14]} 33. Rc4 {[%emt 0:03:27]} Rec6 {[%emt 0:01:07]} 34. Rf5 {[%emt 0:00:56]} b5 {[%emt 0:00:28]} 35. Rc3 {[%emt 0:01:23]} Kd8 {[%emt 0:02:03]} 36. Rd5+ {[%emt 0:02:29]} Ke7 {[%emt 0:00:37]} 37. Re5+ {[%emt 0:00:08]} Kf6 {[%emt 0:00:31]} 38. Rf5+ {[%emt 0:00:11]} Ke7 {[%emt 0:00:05]} 39. Re5+ {[%emt 0:00:11]} Kf6 {[%emt 0:00:02]} 40. Rh5 {[%emt 0:01:12]} Kg6 {[%emt 0:05:36]} 41. Rd5 {[%emt 0:00:00]} Kf6 {[%emt 0:00:00]} 42. f4 {[%emt 0:00:00]} Ke7 {[%emt 0:00:59]} 43. a4 {[%emt 0:08:49]} Ke6 $2 {[%emt 0:04:14]} (43... bxa4 $16 44. bxa4 c4) 44. axb5 $18 {[%emt 0:05:56]} axb5 {[%emt 0:00:05]} 45. b4 {[%emt 0:00:35]} cxb4 {[%emt 0:02:11]} (45... c4 {was called for.} 46. Rxb5 Ra6) 46. Rxc6+ {[%emt 0:00:06]} Rxc6 {[%emt 0:00:02]} 47. Rxb5 {[%emt 0:00:07] KR-KR} Rc2+ {[%emt 0:02:04]} 48. Kd3 $1 {[%emt 0:00:18]} Rh2 {[%emt 0:00:18]} (48... Rb2 $142 49. Rb6+ {[%mdl 64] Skewer} Ke7 50. Rxh6 f6 51. Rh7+ Kd6) 49. Rb6+ {[%emt 0:05:32]} Ke7 {[%emt 0:00:04]} 50. Rxh6 {[%emt 0:03:56]} ({Weaker is} 50. Rxb4 f6 51. Kd4 Rd2+ 52. Kc4 Re2 $18) 50... b3 {[%emt 0:00:07]} 51. Rb6 {[%emt 0:00:03]} b2 {[%emt 0:00:03] [#]} 52. h4 $1 {[%emt 0:01:44][%cal Bh3h4,Bh4h5][%mdl 32]} Kf8 {[%emt 0:01:53] [#]} (52... f6 53. h5) 53. h5 $1 {[%emt 0:03:23]} Kg7 {[%emt 0:00:10]} (53... Ke8 54. e5) 54. Kc3 {[%emt 0:00:45]} Re2 {[%emt 0:00:29]} 55. Rxb2 {[%emt 0:00:31]} (55. h6+ $142 Kh7 56. Kd3) 55... Rxe3+ {[%emt 0:00:04]} 56. Kd4 {[%emt 0:00:04]} Rh3 {[%emt 0:07:12]} (56... Rf3 $142 57. Rg2+ Kf8) 57. Rb5 {[%emt 0:03:16]} Rh1 {[%emt 0:00:58]} 58. Rf5 {[%emt 0:01:54]} Kf8 {[%emt 0:03:07]} 59. Rg5 {[%emt 0:03:54]} (59. e5 $142 Ke8 60. Kd3) 59... Ke7 {[%emt 0:01:13]} 60. Ra5 {[%emt 0:00:18]} Kf8 {[%emt 0:01:01]} 61. Rb5 $2 {[%emt 0:00:26]} (61. Ke3 $18 {Rf5 would be deadly.} Rh3+ 62. Ke2) 61... Rh4 $2 {[%emt 0:00:42]} (61... Kg7 $11 {and Black stays safe.} 62. Rg5+ Kf8) 62. Rf5 $2 {[%emt 0:00:59]} (62. Ke3) 62... Rh1 $1 {[%emt 0:00:15]} 63. e5 {[%emt 0:01:25]} Ke7 {[%emt 0:00:38]} 64. Ke4 {[%emt 0:00:35]} (64. Kd3 $142 Rh2 65. Ke3) 64... Rh3 {[%emt 0:03:06]} 65. Rg5 {[%emt 0:00:58] Strongly threatening f5.} Rh4 $2 {[%emt 0:00:25][%mdl 8192] [#]} (65... Kf8 $16 66. Kd5 Ke7) 66. Kf5 $2 {[%emt 0:00:49]} (66. Kf3 $1 $18 Ke6 67. Kg3) 66... Rh1 $2 {[%emt 0:00:25][%mdl 8192] [#]} (66... Kf8 $14 67. Ke4 Rh3) 67. Ke4 $2 {[%emt 0:01:33]} ({White has to play} 67. Kg4 $1 $18 {Hoping for Rf5.} Ke6 68. Kg3) 67... Rh4 $1 $14 {[%emt 0:00:08]} 68. Rf5 {[%emt 0:02:39]} ({White should try} 68. Rg1 $14) 68... Rh3 $16 {[%emt 0:00:11]} 69. Kd4 $2 {[%emt 0:00:16][%mdl 8192]} (69. Kd5 $16) 69... Rh1 $1 $18 {[%emt 0:01:42]} 70. Ke3 {[%emt 0:00:17]} Rh3+ {[%emt 0:00:17]} 71. Kf2 {[%emt 0:00:14] aiming for Kg2.} Rh4 {[%emt 0:02:47]} 72. Kg3 {[%emt 0:00:24]} Rh1 {[%emt 0:00:04]} 73. Kg2 {[%emt 0:00:10]} Rh4 {[%emt 0:00:05]} 74. Kg3 {[%emt 0:00:01]} Rh1 {[%emt 0:00:05]} 75. Kg4 {[%emt 0:00:17]} Rg1+ {[%emt 0:00:13]} 76. Kh4 {[%emt 0:00:05]} Rh1+ {[%emt 0:00:48]} 77. Kg5 {[%emt 0:00:17]} Ke6 {[%emt 0:07:16]} 78. Rf6+ {[%emt 0:00:06]} Ke7 {[%emt 0:00:03]} 79. Kh6 {[%emt 0:01:19]} Rh4 {[%emt 0:00:16]} 80. Kg7 {[%emt 0:01:01]} Rg4+ {[%emt 0:06:40]} 81. Kh7 {[%emt 0:00:33]} Rh4 {[%emt 0:00:05]} 82. h6 {[%emt 0:00:05]} Rg4 {[%emt 0:00:34]} 83. Rf5 {[%emt 0:01:24]} Kf8 {[%emt 0:02:46]} 84. e6 {[%emt 0:02:58]} Ke7 {[%emt 0:00:04]} 85. exf7 {[%emt 0:01:26]} Kf8 {[%emt 0:00:06]} 86. Rg5 $2 {[%emt 0:01:00]} (86. Rb5 $18 {Rf5 would kill now.} Kxf7 87. Rf5+ Ke7 88. Kh8) 86... Rxf4 $11 {[%emt 0:00:52] The position is equal.} 87. Kg6 {[%emt 0:00:05]} Rf6+ $1 {[%emt 0:00:35]} 88. Kh7 {[%emt 0:01:02]} Rxf7+ {[%emt 0:00:11]} 89. Kh8 {[%emt 0:00:18]} (89. Kg6 $5 Kg8 $8 90. Re5 Rg7+ 91. hxg7 $11 (91. Kf6 Rg1 $11)) 89... Rf6 {[%emt 0:01:56][%cal Rf6h6]} 90. Kh7 {[%emt 0:00:43]} Rf7+ {[%emt 0:01:41]} 91. Rg7 {[%emt 0:00:05]} (91. Kg6 $5 Kg8 $8 92. Kh5+ Kh7 93. Kg4 $11) 91... Rf1 {[%emt 0:00:09]} 92. Rg2 {[%emt 0:01:08]} Rf7+ {[%emt 0:00:55]} 93. Kg6 {[%emt 0:00:54]} Kg8 {[%emt 0:00:27]} 94. Rb2 {[%emt 0:01:14]} Rf8 {[%emt 0:00:17] Inhibits Rb8.} 95. Rb7 {[%emt 0:00:14]} Ra8 {[%emt 0:00:18]} 96. Rb6 {[%emt 0:00:09]} Rc8 {[%emt 0:00:13]} 97. Ra6 {[%emt 0:00:10]} Rb8 {[%emt 0:00:05]} 98. Rf6 {[%emt 0:00:18]} Ra8 {[%emt 0:00:06]} 99. Re6 {[%emt 0:00:25]} Rb8 {[%emt 0:00:03]} 100. Ra6 {[%emt 0:00:07]} Rc8 {[%emt 0:00:06]} 101. Rb6 {[%emt 0:00:03]} Ra8 {[%emt 0:00:06]} 102. Rd6 {[%emt 0:00:08]} Rc8 {[%emt 0:00:04]} 103. h7+ {[%emt 0:00:21]} Kh8 {[%emt 0:00:04]} 104. Kh6 {[%emt 0:00:06]} Ra8 {[%emt 0:00:05] Black escapes into a draw.   Weighted Error Value: White=0.25 (precise) /Black=0.28 (precise)} 1/2-1/2

[Event "4NCL 2022-2023"]
[Site "Daventry"]
[Date "2023.03.19"]
[Round "8.30"]
[White "Stewart, Ashley"]
[Black "Thorarinsson, Pall A."]
[Result "1/2-1/2"]
[ECO "A27"]
[WhiteElo "2051"]
[BlackElo "2169"]
[Annotator "TA"]
[PlyCount "101"]
[EventDate "2022.10.20"]
[EventType "team-tourn"]
[EventCountry "ENG"]
[SourceTitle "playchess.com"]
[Source "ChessBase"]
[SourceQuality "1"]
[TimeControl "40/6000+30:2400+30"]

{[%evp 9,101,25,35,43,73,62,80,69,62,42,40,39,47,0,0,-4,0,0,12,-42,3,-106,-100,-73,-22,-233,-231,-235,-227,-235,-239,-236,-218,-293,-130,-237,-182,-226,-193,-177,-177,-168,-66,-68,-94,-83,-97,-102,-106,-139,-139,-180,-188,-195,-187,-180,-181,-197,-187,-180,-147,-403,-388,-345,-287,-264,-217,-253,-104,-95,-50,-144,-144,-136,0,-152,-50,-43,-43,-45,0,-59,0,0,0,0,0,0,0,0,0,0,0,0]} 1. c4 {[%emt 0:03:09]} e5 {[%emt 0:00:37][%cal Be7e5,Be5e4][%mdl 32]} 2. g3 {[%emt 0:00:02]} Nc6 {[%emt 0:00:37]} 3. Nc3 {[%emt 0:00:13]} f5 {[%emt 0:01:02]} 4. Nf3 {[%emt 0:00:53]} Nf6 {[%emt 0:09:45]} 5. d4 {[%emt 0:03:05]} e4 {[%emt 0:02:49]} 6. Nh4 {[%emt 0:01:05] A27: English Opening: Three Knights Variation.} d5 $1 {[%emt 0:15:09][%mdl 4] is now more promising than 6...d6.} 7. Bg5 {[%emt 0:11:36]} Be7 {[%emt 0:18:21]} 8. e3 $1 {[%emt 0:09:05] White is better.} O-O {[%emt 0:19:18]} 9. Bxf6 {[%emt 0:11:55]} Bxf6 {[%emt 0:00:24]} 10. cxd5 {[%emt 0:00:54]} Ne7 {[%emt 0:03:38]} 11. Bc4 {[%emt 0:03:11]} (11. Ng2 $14) 11... Bxh4 $11 {[%emt 0:00:30]} 12. gxh4 {[%emt 0:01:33]} Ng6 {[%emt 0:00:39][%cal Be7g6,Bg6h4,Bh4f3][%mdl 32]} 13. Qh5 {[%emt 0:19:52]} Nxh4 {[%emt 0:01:37]} 14. O-O-O {[%emt 0:05:43] [#]} (14. d6+ $11 Kh8 15. dxc7 Qxc7 16. Qxh4 Qxc4 17. d5) 14... Nf3 $146 {[%emt 0:14:37]} ({Predecessor:} 14... Bd7 15. d6+ Kh8 16. dxc7 Qxc7 17. Qxh4 Qxc4 18. d5 Rf6 19. Rd4 Qc5 20. Kb1 Rc8 {0-1 Stokke,K (2382)-Lie,K (2547) NOR-chT 0910 2009 (4)}) 15. Ne2 {[%emt 0:11:09] [#]} (15. d6+ $11 Kh8 16. dxc7 Qxc7 17. Be2) 15... b5 $1 $17 {[%emt 0:02:09][%mdl 512]} 16. Bb3 {[%emt 0:01:12]} Qd6 {[%emt 0:02:18]} (16... a5 $17 {...a4 would be deadly.} 17. d6+ Kh8) 17. Nf4 $2 {[%emt 0:03:10]} (17. Ng1 $1 $11 {and White stays safe.}) 17... a5 $1 $19 {[%emt 0:01:12][%cal Ba7a5,Ba5a4][%mdl 32]} 18. Rdg1 {[%emt 0:05:30]} a4 {[%emt 0:02:09]} 19. Bd1 {[%emt 0:00:21]} Nxg1 {[%emt 0:03:17]} 20. Rxg1 {[%emt 0:00:01]} Rf7 {[%emt 0:00:49]} 21. Qg5 {[%emt 0:02:59]} Qf6 {[%emt 0:06:10]} (21... c6 $19 22. dxc6 Qxc6+ 23. Kd2 Bb7) 22. Qg2 {[%emt 0:02:04]} (22. h4 $17) 22... Bb7 {[%emt 0:00:39]} 23. Kb1 {[%emt 0:02:45]} Rd8 {[%emt 0:00:21]} 24. Qf1 {[%emt 0:02:37]} Qb6 {[%emt 0:01:09]} ({And not} 24... Bxd5 25. Qxb5 c6 26. Qa5 $17) 25. Bh5 {[%emt 0:01:51]} Bxd5 {[%emt 0:01:30]} (25... Re7 $19 26. Qg2 Rdd7) 26. Nxd5 $15 {[%emt 0:01:13]} Rxd5 {[%emt 0:00:02]} 27. Bxf7+ {[%emt 0:00:02]} Kxf7 $19 {[%emt 0:00:11][%mdl 4096] Endgame KQR-KQR} 28. Qh3 {[%emt 0:00:30]} Kg8 $1 {[%emt 0:01:46]} 29. Qg3 {[%emt 0:02:46][%csl Gg1][%cal Rg3g7]} g6 {[%emt 0:00:54]} 30. Qg5 {[%emt 0:02:10]} Qd6 {[%emt 0:00:21]} 31. Rc1 {[%emt 0:02:46]} c5 {[%emt 0:00:11]} ({Worse is} 31... Qxh2 32. Qe7 Qd6 33. Qe8+ Kg7 34. Qb8 $15) 32. dxc5 {[%emt 0:00:32]} Rxc5 {[%emt 0:00:01]} 33. Rxc5 {[%emt 0:00:23]} Qxc5 {[%emt 0:00:01] KQ-KQ} 34. Qd8+ {[%emt 0:00:17]} Kg7 {[%emt 0:00:01]} 35. Qd7+ $2 {[%emt 0:00:39][%mdl 8192]} (35. a3 $17) 35... Kh6 {[%emt 0:00:10]} 36. Qd8 {[%emt 0:00:30]} Qe5 {[%emt 0:00:43]} 37. h4 {[%emt 0:00:37]} Qc5 {[%emt 0:01:34] ...b4 is the strong threat.} 38. a3 {[%emt 0:00:37] [#]} b4 {[%emt 0:01:27]} (38... f4 $1 $19 {[%cal Rf4e3] is more deadly.} 39. exf4 Qf5) 39. axb4 {[%emt 0:00:30]} Qxb4 {[%emt 0:00:01] Hoping for ...a3.} 40. Ka2 {[%emt 0:00:30]} (40. Qg5+ $1 $15 Kg7 41. Qd8) 40... Qc4+ {[%emt 0:00:48]} 41. Ka1 {[%emt 0:00:00]} Qb4 {[%emt 0:00:00] Prevents Qe7} 42. Ka2 $1 {[%emt 0:08:45] [#]} Qc5 {[%emt 0:01:37]} (42... Qb3+ $1 $17 43. Ka1 Qb4 44. Ka2) 43. Qf6 $1 $15 {[%emt 0:15:23]} Qc4+ {[%emt 0:09:19]} 44. Ka1 {[%emt 0:01:41]} Qf1+ {[%emt 0:09:19]} 45. Ka2 {[%emt 0:00:04]} Qg1 {[%emt 0:00:34]} ({But not} 45... Qxf2 46. Qg5+ Kg7 47. Qe7+ Kh6 48. Qg5+ Kg7 49. Qe7+ Kh6 50. Qg5+ $11) ({Black should play} 45... Qg2 $1 $15 46. Qe7 Qg1) 46. Qe7 $1 $11 {[%emt 0:01:41] The position is equal.} Qxf2 {[%emt 0:15:57]} 47. Qg5+ {[%emt 0:00:04]} Kg7 {[%emt 0:00:04] White must now prevent ...Kf7.} 48. Qe7+ {[%emt 0:00:05]} Kh6 {[%emt 0:00:03]} 49. Qg5+ {[%emt 0:00:05]} Kg7 {[%emt 0:00:05] aiming for ...Kf7.} 50. Qe7+ {[%emt 0:00:03]} Kh6 {[%emt 0:00:04]} 51. Qg5+ {[%emt 0:18:12] White happily takes the draw.   Weighted Error Value: White=0.27 (precise) /Black=0.30} 1/2-1/2